[Event "Chess Super League 2021"]
[Site "Online"]
[Date "2021.10.14"]
[Round "4.2"]
[White "Muzychuk, Mariya"]
[Black "Karavade, Eesha"]
[Result "1/2-1/2"]
[ECO "D31"]
[WhiteElo "2536"]
[BlackElo "2345"]
[Annotator "ChessBase"]
[PlyCount "84"]
[EventDate "2021.10.11"]
[EventType "team-tourn"]
[EventCountry "NET"]
[SourceTitle "playchess.com"]
[Source "ChessBase"]
[SourceQuality "1"]
[TimeControl "900+10"]

1. c4 {[%emt 0:00:15]} e6 {[%emt 0:00:13]} 2. Nc3 {[%emt 0:00:05]} d5 {[%emt 0:00:02]} 3. d4 {[%emt 0:00:04]} Bb4 {[%emt 0:00:03]} 4. cxd5 {[%emt 0:00:09]} exd5 {[%emt 0:00:02]} 5. Bf4 {[%emt 0:00:02]} c5 {[%emt 0:00:24]} 6. e3 {[%emt 0:01:02]} c4 {[%emt 0:00:02]} 7. Bxb8 {[%emt 0:05:03]} Bxc3+ {[%emt 0:00:05]} 8. bxc3 {[%emt 0:00:01]} Rxb8 {[%emt 0:00:01]} 9. Nf3 {[%emt 0:01:38]} Nf6 {[%emt 0:00:14]} 10. Nd2 {[%emt 0:00:29]} Bf5 {[%emt 0:01:52]} 11. Be2 {[%emt 0:00:07]} O-O {[%emt 0:00:03]} 12. O-O {[%emt 0:00:03]} Qa5 {[%emt 0:00:34]} 13. Qc1 {[%emt 0:00:21]} Rfe8 {[%emt 0:00:31]} 14. a4 {[%emt 0:00:25]} h6 {[%emt 0:00:10]} 15. Re1 {[%emt 0:00:57]} Ne4 {[%emt 0:01:44]} 16. Nxe4 {[%emt 0:00:25]} Bxe4 {[%emt 0:00:01]} 17. f3 {[%emt 0:01:31]} Bg6 {[%emt 0:00:03]} 18. Bd1 {[%emt 0:00:50]} Bd3 {[%emt 0:00:56]} 19. Qd2 {[%emt 0:00:56]} b5 {[%emt 0:00:30]} 20. Bc2 {[%emt 0:00:08]} Bxc2 {[%emt 0:00:29]} 21. Qxc2 {[%emt 0:00:30]} b4 {[%emt 0:00:02]} 22. cxb4 {[%emt 0:00:02]} Rxb4 {[%emt 0:00:10]} 23. e4 {[%emt 0:00:31]} Qb6 {[%emt 0:01:22]} 24. exd5 {[%emt 0:00:12]} Qxd4+ {[%emt 0:00:07]} 25. Qf2 {[%emt 0:00:04]} Qxf2+ {[%emt 0:00:21]} 26. Kxf2 {[%emt 0:00:04]} Rb2+ {[%emt 0:00:01]} 27. Kg3 {[%emt 0:00:25]} Rxe1 {[%emt 0:00:07]} 28. Rxe1 {[%emt 0:00:01]} Rd2 {[%emt 0:00:05]} 29. Re8+ {[%emt 0:00:40]} Kh7 {[%emt 0:00:02]} 30. Rc8 {[%emt 0:00:04]} Rxd5 {[%emt 0:00:42]} 31. Rxc4 {[%emt 0:01:35]} a5 {[%emt 0:00:09]} 32. Rc7 {[%emt 0:00:06]} Rd4 {[%emt 0:00:16]} 33. Rxf7 {[%emt 0:00:06]} Rxa4 {[%emt 0:00:01]} 34. Ra7 {[%emt 0:00:01]} Ra2 {[%emt 0:00:05]} 35. h4 {[%emt 0:00:03]} h5 {[%emt 0:00:10]} 36. Kh3 {[%emt 0:00:03]} Kg6 {[%emt 0:00:11]} 37. g4 {[%emt 0:00:18]} hxg4+ {[%emt 0:00:16]} 38. Kxg4 {[%emt 0:00:02]} a4 {[%emt 0:00:05]} 39. h5+ {[%emt 0:00:03]} Kh6 {[%emt 0:00:05]} 40. Ra6+ {[%emt 0:00:04]} Kh7 {[%emt 0:00:02]} 41. Kg5 {[%emt 0:00:08]} Rg2+ {[%emt 0:00:07]} 42. Kf5 {[%emt 0:00:08]} Rh2 {[%emt 0:00:08]} 1/2-1/2

[Event "Chess Super League 2021"]
[Site "Online"]
[Date "2021.10.14"]
[Round "4.2"]
[White "Kosteniuk, Alexandra"]
[Black "Gomes, Mary Ann"]
[Result "1-0"]
[ECO "E44"]
[WhiteElo "2518"]
[BlackElo "2354"]
[Annotator "ChessBase"]
[PlyCount "61"]
[EventDate "2021.10.11"]
[EventType "team-tourn"]
[EventCountry "NET"]
[SourceTitle "playchess.com"]
[Source "ChessBase"]
[SourceQuality "1"]
[TimeControl "900+10"]

1. d4 {[%emt 0:00:10]} Nf6 {[%emt 0:00:17]} 2. c4 {[%emt 0:00:02]} e6 {[%emt 0:00:02]} 3. Nc3 {[%emt 0:00:02]} Bb4 {[%emt 0:00:04]} 4. e3 {[%emt 0:00:03]} b6 {[%emt 0:00:05]} 5. Nge2 {[%emt 0:00:05]} Bb7 {[%emt 0:00:03]} 6. a3 {[%emt 0:00:19]} Bxc3+ {[%emt 0:01:06]} 7. Nxc3 {[%emt 0:00:01]} O-O {[%emt 0:00:04]} 8. Bd3 {[%emt 0:00:18]} d5 {[%emt 0:00:13]} 9. cxd5 {[%emt 0:00:07]} exd5 {[%emt 0:00:08]} 10. b4 {[%emt 0:01:04]} Nbd7 {[%emt 0:00:23]} 11. O-O {[%emt 0:00:52]} c5 {[%emt 0:01:45]} 12. dxc5 {[%emt 0:00:29]} bxc5 {[%emt 0:00:02]} 13. Bb2 {[%emt 0:00:48]} Qb6 {[%emt 0:01:57]} 14. Ne2 {[%emt 0:01:03]} Rfe8 {[%emt 0:01:33]} 15. Ng3 {[%emt 0:00:23]} Ne5 {[%emt 0:00:12]} 16. Be2 {[%emt 0:01:05]} Rad8 {[%emt 0:01:47]} 17. Qc2 {[%emt 0:01:51]} d4 {[%emt 0:01:17]} 18. Qxc5 {[%emt 0:00:06]} Qxc5 {[%emt 0:00:04]} 19. bxc5 {[%emt 0:00:02]} d3 {[%emt 0:00:01]} 20. Bd1 {[%emt 0:00:06]} Bc6 {[%emt 0:03:13]} 21. Bd4 {[%emt 0:02:11]} Nc4 {[%emt 0:00:08]} 22. Nf5 {[%emt 0:02:09]} Nd2 {[%emt 0:01:27]} 23. Re1 {[%emt 0:00:12]} Rd5 {[%emt 0:00:08]} 24. g4 {[%emt 0:02:51]} h5 {[%emt 0:01:17]} 25. h3 {[%emt 0:00:05]} hxg4 {[%emt 0:00:02]} 26. hxg4 {[%emt 0:00:01]} Re6 {[%emt 0:01:11]} 27. f3 {[%emt 0:01:05]} g6 {[%emt 0:00:12]} 28. Ne7+ {[%emt 0:00:24]} Rxe7 {[%emt 0:00:02]} 29. Bxf6 {[%emt 0:00:01]} Re8 {[%emt 0:00:34]} 30. Kf2 {[%emt 0:00:13]} Rxc5 {[%emt 0:00:08]} 31. Rh1 {[%emt 0:00:04]} 1-0

[Event "Chess Super League 2021"]
[Site "Online"]
[Date "2021.10.14"]
[Round "4.2"]
[White "Tarini Goyal"]
[Black "Mrudul Dehankar"]
[Result "1/2-1/2"]
[ECO "E11"]
[WhiteElo "2164"]
[BlackElo "2256"]
[Annotator "NA"]
[PlyCount "76"]
[EventDate "2021.10.11"]
[EventType "team-tourn"]
[EventCountry "NET"]
[SourceTitle "playchess.com"]
[Source "ChessBase"]
[SourceQuality "1"]
[TimeControl "900+10"]

1. d4 {[%emt 0:00:13]} Nf6 {[%emt 0:00:12]} 2. c4 {[%emt 0:00:02]} e6 {[%emt 0:00:03]} 3. g3 {[%emt 0:00:02]} Bb4+ {[%emt 0:00:02]} 4. Bd2 {[%emt 0:00:09]} c5 {[%emt 0:01:26]} 5. Bxb4 {[%emt 0:00:09]} cxb4 {[%emt 0:00:02]} 6. Bg2 {[%emt 0:00:07]} O-O {[%emt 0:00:02]} 7. a3 {[%emt 0:00:26]} bxa3 {[%emt 0:00:33]} 8. Nxa3 {[%emt 0:00:04]} Nc6 {[%emt 0:00:37]} 9. Nf3 {[%emt 0:00:18]} d6 {[%emt 0:01:23]} 10. O-O {[%emt 0:00:15]} e5 {[%emt 0:00:41]} 11. Nb5 {[%emt 0:00:59]} e4 {[%emt 0:07:13]} 12. Ng5 {[%emt 0:03:41]} Bf5 {[%emt 0:02:38]} 13. d5 {[%emt 0:00:20]} Ne5 {[%emt 0:00:43]} 14. Qd4 {[%emt 0:00:24]} a6 {[%emt 0:00:54]} 15. Nc3 {[%emt 0:00:10]} Rc8 {[%emt 0:00:02]} 16. b3 {[%emt 0:00:04]} e3 {[%emt 0:00:51]} 17. fxe3 {[%emt 0:02:05]} Bg6 {[%emt 0:00:10]} 18. Nge4 {[%emt 0:02:37]} Nxe4 {[%emt 0:00:17]} 19. Nxe4 {[%emt 0:00:50]} f5 {[%emt 0:00:05]} 20. Nf2 {[%emt 0:00:11]} Bh5 {[%emt 0:00:06]} 21. Ra2 {[%emt 0:00:40]} Qe7 {[%emt 0:00:13]} 22. Nh3 {[%emt 0:02:26]} Ng4 {[%emt 0:00:19]} 23. Nf4 {[%emt 0:00:47]} Qxe3+ {[%emt 0:00:11]} 24. Qxe3 {[%emt 0:00:03]} Nxe3 {[%emt 0:00:01]} 25. Nxh5 {[%emt 0:00:04]} Nxf1 {[%emt 0:00:01]} 26. Bxf1 {[%emt 0:00:07]} g5 {[%emt 0:00:03]} 27. e3 {[%emt 0:00:21]} Rce8 {[%emt 0:00:29]} 28. Kf2 {[%emt 0:00:22]} Kf7 {[%emt 0:00:06]} 29. Be2 {[%emt 0:00:20]} Kg6 {[%emt 0:00:02]} 30. Bd1 {[%emt 0:00:01]} Re7 {[%emt 0:00:08]} 31. Rd2 {[%emt 0:00:43]} Re5 {[%emt 0:00:26]} 32. Rd3 {[%emt 0:00:16]} b5 {[%emt 0:00:05]} 33. cxb5 {[%emt 0:00:19]} axb5 {[%emt 0:00:01]} 34. h3 {[%emt 0:00:10]} h6 {[%emt 0:00:08]} 35. Kg2 {[%emt 0:00:24]} Rfe8 {[%emt 0:00:14]} 36. Kf2 {[%emt 0:00:24]} Rf8 {[%emt 0:00:03]} 37. Kg2 {[%emt 0:00:03]} Rfe8 {[%emt 0:00:25]} 38. Kf2 {[%emt 0:00:15]} Rf8 {[%emt 0:00:16]} 1/2-1/2

[Event "Chess Super League 2021"]
[Site "Online"]
[Date "2021.10.14"]
[Round "4.3"]
[White "Muzychuk, Anna"]
[Black "Dzagnidze, Nana"]
[Result "1-0"]
[ECO "B51"]
[WhiteElo "2533"]
[BlackElo "2524"]
[Annotator "ChessBase"]
[PlyCount "69"]
[EventDate "2021.10.11"]
[EventType "team-tourn"]
[EventCountry "NET"]
[SourceTitle "playchess.com"]
[Source "ChessBase"]
[SourceQuality "1"]
[TimeControl "900+10"]

1. e4 {[%emt 0:00:15]} c5 {[%emt 0:00:14]} 2. Nf3 {[%emt 0:00:03]} d6 {[%emt 0:00:06]} 3. Bb5+ {[%emt 0:00:04]} Nd7 {[%emt 0:00:18]} 4. Ba4 {[%emt 0:00:07]} Ngf6 {[%emt 0:00:09]} 5. O-O {[%emt 0:00:11]} a6 {[%emt 0:00:41]} 6. c4 {[%emt 0:00:06]} g6 {[%emt 0:00:34]} 7. Nc3 {[%emt 0:00:17]} Bg7 {[%emt 0:00:02]} 8. d3 {[%emt 0:00:06]} O-O {[%emt 0:00:01]} 9. h3 {[%emt 0:00:05]} Rb8 {[%emt 0:04:59]} 10. Rb1 {[%emt 0:00:18]} b6 {[%emt 0:00:35]} 11. Be3 {[%emt 0:00:53]} Bb7 {[%emt 0:00:05]} 12. b4 {[%emt 0:00:42]} e6 {[%emt 0:01:09]} 13. Qd2 {[%emt 0:00:56]} Qc7 {[%emt 0:00:07]} 14. Rfc1 {[%emt 0:01:44]} Ba8 {[%emt 0:00:15]} 15. a3 {[%emt 0:00:32]} Rfd8 {[%emt 0:01:54]} 16. Bg5 {[%emt 0:01:06]} Ne5 {[%emt 0:00:16]} 17. Qe3 {[%emt 0:00:21]} h6 {[%emt 0:01:13]} 18. Bh4 {[%emt 0:00:42]} g5 {[%emt 0:00:45]} 19. Bg3 {[%emt 0:00:18]} Nh5 {[%emt 0:00:07]} 20. Bh2 {[%emt 0:00:32]} Ng6 {[%emt 0:00:03]} 21. Ne2 {[%emt 0:00:51]} Be5 {[%emt 0:01:12]} 22. Bxe5 {[%emt 0:01:05]} dxe5 {[%emt 0:00:12]} 23. g3 {[%emt 0:02:13]} Kg7 {[%emt 0:00:34]} 24. Nc3 {[%emt 0:01:15]} f5 {[%emt 0:00:46]} 25. bxc5 {[%emt 0:00:16]} bxc5 {[%emt 0:00:03]} 26. Rxb8 {[%emt 0:00:40]} Qxb8 {[%emt 0:00:28]} 27. Qxc5 {[%emt 0:00:55]} Rxd3 {[%emt 0:00:58]} 28. Rb1 {[%emt 0:00:04]} Qd6 {[%emt 0:00:55]} 29. Qa7+ {[%emt 0:00:31]} Kf6 {[%emt 0:00:02]} 30. Be8 {[%emt 0:00:38]} Ne7 {[%emt 0:00:47]} 31. Bxh5 {[%emt 0:00:20]} Bxe4 {[%emt 0:00:31]} 32. Nxe4+ {[%emt 0:00:12]} fxe4 {[%emt 0:00:01]} 33. Nh2 {[%emt 0:00:04]} e3 {[%emt 0:00:02]} 34. Ng4+ {[%emt 0:00:05]} Kg7 {[%emt 0:00:01]} 35. Nxe3 {[%emt 0:00:06]} 1-0

[Event "Chess Super League 2021"]
[Site "Online"]
[Date "2021.10.14"]
[Round "4.3"]
[White "Soumya, Swaminathan"]
[Black "Harika, Dronavalli"]
[Result "1/2-1/2"]
[ECO "C42"]
[WhiteElo "2351"]
[BlackElo "2511"]
[Annotator "ChessBase"]
[PlyCount "132"]
[EventDate "2021.10.11"]
[EventType "team-tourn"]
[EventCountry "NET"]
[SourceTitle "playchess.com"]
[Source "ChessBase"]
[SourceQuality "1"]
[TimeControl "900+10"]

1. e4 {[%emt 0:00:15]} e5 {[%emt 0:00:12]} 2. Nf3 {[%emt 0:00:02]} Nf6 {[%emt 0:00:02]} 3. Nxe5 {[%emt 0:00:04]} d6 {[%emt 0:00:02]} 4. Nf3 {[%emt 0:00:01]} Nxe4 {[%emt 0:00:02]} 5. d4 {[%emt 0:00:02]} d5 {[%emt 0:00:02]} 6. Bd3 {[%emt 0:00:02]} Bd6 {[%emt 0:00:16]} 7. O-O {[%emt 0:00:33]} O-O {[%emt 0:00:02]} 8. c4 {[%emt 0:00:45]} c6 {[%emt 0:00:02]} 9. Nc3 {[%emt 0:00:29]} Nxc3 {[%emt 0:00:43]} 10. bxc3 {[%emt 0:00:00]} dxc4 {[%emt 0:00:03]} 11. Bxc4 {[%emt 0:00:03]} Bf5 {[%emt 0:00:38]} 12. Re1 {[%emt 0:00:54]} Nd7 {[%emt 0:01:57]} 13. a4 {[%emt 0:01:03]} Qa5 {[%emt 0:03:19]} 14. Nh4 {[%emt 0:01:19]} Nb6 {[%emt 0:01:23]} 15. Bb3 {[%emt 0:04:34]} Rae8 {[%emt 0:02:50]} 16. Bd2 {[%emt 0:03:48]} Rxe1+ {[%emt 0:00:05]} 17. Qxe1 {[%emt 0:00:03]} Bd7 {[%emt 0:01:15]} 18. c4 {[%emt 0:00:54]} Qh5 {[%emt 0:00:02]} 19. g3 {[%emt 0:00:29]} Re8 {[%emt 0:00:24]} 20. Qf1 {[%emt 0:00:49]} Qe2 {[%emt 0:01:23]} 21. Qxe2 {[%emt 0:01:23]} Rxe2 {[%emt 0:00:03]} 22. Ra2 {[%emt 0:00:11]} Be6 {[%emt 0:00:27]} 23. Kf1 {[%emt 0:00:55]} Re4 {[%emt 0:00:02]} 24. d5 {[%emt 0:00:10]} cxd5 {[%emt 0:00:09]} 25. cxd5 {[%emt 0:00:15]} Bxd5 {[%emt 0:00:05]} 26. Bxd5 {[%emt 0:00:01]} Nxd5 {[%emt 0:00:01]} 27. Nf5 {[%emt 0:00:09]} Bf8 {[%emt 0:00:08]} 28. a5 {[%emt 0:00:04]} g6 {[%emt 0:00:11]} 29. Ne3 {[%emt 0:00:04]} Nxe3+ {[%emt 0:00:09]} 30. Bxe3 {[%emt 0:00:00]} a6 {[%emt 0:00:01]} 31. Rb2 {[%emt 0:00:13]} Bb4 {[%emt 0:00:27]} 32. Bb6 {[%emt 0:00:09]} f5 {[%emt 0:00:18]} 33. Rc2 {[%emt 0:00:13]} Kf7 {[%emt 0:00:24]} 34. h4 {[%emt 0:00:07]} Bd6 {[%emt 0:00:10]} 35. Kg2 {[%emt 0:00:14]} h5 {[%emt 0:00:10]} 36. Rc8 {[%emt 0:00:10]} Re8 {[%emt 0:00:02]} 37. Rc2 {[%emt 0:00:14]} f4 {[%emt 0:00:21]} 38. Kf3 {[%emt 0:00:18]} fxg3 {[%emt 0:00:01]} 39. fxg3 {[%emt 0:00:01]} Re5 {[%emt 0:00:12]} 40. Rd2 {[%emt 0:00:25]} Rf5+ {[%emt 0:00:05]} 41. Kg2 {[%emt 0:00:01]} Ke6 {[%emt 0:00:01]} 42. Rd3 {[%emt 0:00:14]} Bb4 {[%emt 0:00:28]} 43. Rb3 {[%emt 0:00:04]} Rb5 {[%emt 0:00:25]} 44. Re3+ {[%emt 0:00:26]} Re5 {[%emt 0:00:01]} 45. Rb3 {[%emt 0:00:06]} Re4 {[%emt 0:00:02]} 46. Kf3 {[%emt 0:00:04]} Rc4 {[%emt 0:00:01]} 47. Re3+ {[%emt 0:00:04]} Kf5 {[%emt 0:00:14]} 48. Re8 {[%emt 0:00:14]} Rc3+ {[%emt 0:00:01]} 49. Kg2 {[%emt 0:00:04]} Bd6 {[%emt 0:00:06]} 50. Bf2 {[%emt 0:00:05]} Ra3 {[%emt 0:00:26]} 51. Rd8 {[%emt 0:00:02]} Ke6 {[%emt 0:00:02]} 52. Rg8 {[%emt 0:00:10]} Kf7 {[%emt 0:00:10]} 53. Rd8 {[%emt 0:00:02]} Ke7 {[%emt 0:00:02]} 54. Rg8 {[%emt 0:00:04]} Ra2 {[%emt 0:00:01]} 55. Kf3 {[%emt 0:00:09]} Kf7 {[%emt 0:00:22]} 56. Rd8 {[%emt 0:00:05]} Be7 {[%emt 0:00:06]} 57. Rd7 {[%emt 0:00:04]} Rxa5 {[%emt 0:00:01]} 58. Rxb7 {[%emt 0:00:04]} Rf5+ {[%emt 0:00:01]} 59. Kg2 {[%emt 0:00:06]} a5 {[%emt 0:00:01]} 60. Ra7 {[%emt 0:00:04]} Kf8 {[%emt 0:00:22]} 61. Bb6 {[%emt 0:00:08]} Bb4 {[%emt 0:00:15]} 62. Be3 {[%emt 0:00:10]} Ke8 {[%emt 0:00:36]} 63. Ra6 {[%emt 0:00:28]} Kf7 {[%emt 0:00:05]} 64. Ra7+ {[%emt 0:00:02]} Ke8 {[%emt 0:00:47]} 65. Ra6 {[%emt 0:00:06]} Kf7 {[%emt 0:00:19]} 66. Ra7+ {[%emt 0:00:02]} Ke8 {[%emt 0:00:02]} 1/2-1/2

[Event "Chess Super League 2021"]
[Site "Online"]
[Date "2021.10.14"]
[Round "4.3"]
[White "Arpita, Mukherjee"]
[Black "Salonika, Saina"]
[Result "1-0"]
[ECO "B53"]
[WhiteElo "2229"]
[BlackElo "2206"]
[Annotator "NA"]
[PlyCount "43"]
[EventDate "2021.10.11"]
[EventType "team-tourn"]
[EventCountry "NET"]
[SourceTitle "playchess.com"]
[Source "ChessBase"]
[SourceQuality "1"]
[TimeControl "900+10"]

1. e4 {[%emt 0:00:17]} c5 {[%emt 0:00:15]} 2. Nf3 {[%emt 0:00:02]} d6 {[%emt 0:00:02]} 3. Bb5+ {[%emt 0:00:03]} Nc6 {[%emt 0:00:04]} 4. d4 {[%emt 0:00:14]} cxd4 {[%emt 0:00:02]} 5. Qxd4 {[%emt 0:00:07]} Bd7 {[%emt 0:00:09]} 6. Bxc6 {[%emt 0:00:03]} bxc6 {[%emt 0:00:31]} 7. c4 {[%emt 0:00:11]} c5 {[%emt 0:00:22]} 8. Qd3 {[%emt 0:00:30]} g6 {[%emt 0:00:31]} 9. Nc3 {[%emt 0:00:53]} Nf6 {[%emt 0:00:56]} 10. O-O {[%emt 0:01:21]} Bg7 {[%emt 0:00:07]} 11. Bg5 {[%emt 0:00:15]} O-O {[%emt 0:00:17]} 12. Rad1 {[%emt 0:00:04]} Bc6 {[%emt 0:01:55]} 13. Rfe1 {[%emt 0:01:51]} Qb6 {[%emt 0:00:57]} 14. b3 {[%emt 0:00:14]} h6 {[%emt 0:01:16]} 15. Bh4 {[%emt 0:01:12]} a5 {[%emt 0:03:03]} 16. e5 {[%emt 0:04:36]} dxe5 {[%emt 0:00:34]} 17. Nxe5 {[%emt 0:00:03]} Rad8 {[%emt 0:01:19]} 18. Qe2 {[%emt 0:00:27]} e6 {[%emt 0:01:17]} 19. Rxd8 {[%emt 0:01:30]} Rxd8 {[%emt 0:00:15]} 20. Nxf7 {[%emt 0:00:22]} Re8 {[%emt 0:00:27]} 21. Nd6 {[%emt 0:00:06]} Re7 {[%emt 0:00:08]} 22. Nc8 {[%emt 0:00:02]} 1-0

[Event "Chess Super League 2021"]
[Site "Online"]
[Date "2021.10.15"]
[Round "5.1"]
[White "Tania, Sachdev"]
[Black "Soumya, Swaminathan"]
[Result "0-1"]
[ECO "A65"]
[WhiteElo "2392"]
[BlackElo "2351"]
[Annotator "NA"]
[PlyCount "76"]
[EventDate "2021.10.11"]
[EventType "team-tourn"]
[EventCountry "NET"]
[SourceTitle "playchess.com"]
[Source "ChessBase"]
[SourceQuality "1"]
[TimeControl "900+10"]

1. d4 {[%emt 0:00:14]} Nf6 {[%emt 0:00:13]} 2. c4 {[%emt 0:00:03]} g6 {[%emt 0:00:01]} 3. f3 {[%emt 0:00:01]} c5 {[%emt 0:00:16]} 4. d5 {[%emt 0:00:04]} e6 {[%emt 0:00:07]} 5. e4 {[%emt 0:00:10]} d6 {[%emt 0:00:02]} 6. Nc3 {[%emt 0:00:07]} exd5 {[%emt 0:00:02]} 7. cxd5 {[%emt 0:00:02]} Bg7 {[%emt 0:00:12]} 8. Nge2 {[%emt 0:00:08]} a6 {[%emt 0:00:33]} 9. a4 {[%emt 0:00:02]} Nbd7 {[%emt 0:00:06]} 10. Ng3 {[%emt 0:00:32]} h5 {[%emt 0:00:03]} 11. Bg5 {[%emt 0:01:03]} h4 {[%emt 0:00:51]} 12. Nge2 {[%emt 0:00:02]} Qa5 {[%emt 0:01:42]} 13. h3 {[%emt 0:03:10]} Ne5 $15 {[%emt 0:02:41]} 14. Nc1 {[%emt 0:00:33]} c4 {[%emt 0:01:04]} 15. Qd2 {[%emt 0:03:46]} b5 {[%emt 0:03:05]} 16. Be2 {[%emt 0:02:49]} b4 {[%emt 0:02:24]} 17. Nd1 {[%emt 0:00:01]} Bd7 {[%emt 0:01:19]} 18. O-O {[%emt 0:01:20]} Rc8 {[%emt 0:01:05]} 19. Nf2 {[%emt 0:02:49]} Nh5 {[%emt 0:01:04]} 20. Bxh4 {[%emt 0:00:46]} c3 {[%emt 0:00:09]} 21. bxc3 {[%emt 0:00:02]} bxc3 {[%emt 0:00:01]} 22. Qe3 {[%emt 0:00:06]} Bh6 {[%emt 0:01:17]} 23. Bg5 {[%emt 0:00:02]} Bxg5 {[%emt 0:00:07]} 24. Qxg5 {[%emt 0:00:01]} Qb6 {[%emt 0:00:08]} 25. a5 {[%emt 0:00:33]} Qa7 {[%emt 0:00:17]} 26. f4 {[%emt 0:00:35]} Qe3 {[%emt 0:00:21]} 27. Bxh5 {[%emt 0:00:25]} Rxh5 {[%emt 0:00:10]} 28. Qf6 {[%emt 0:00:01]} Nf3+ {[%emt 0:00:15]} 29. Kh1 {[%emt 0:00:11]} Nd2 {[%emt 0:00:07]} 30. Ncd3 {[%emt 0:00:04]} Nxf1 {[%emt 0:00:03]} 31. Rxf1 {[%emt 0:00:00]} c2 {[%emt 0:00:04]} 32. Nc1 {[%emt 0:00:07]} Qc5 {[%emt 0:00:30]} 33. Nfd3 {[%emt 0:00:20]} Qe3 {[%emt 0:00:08]} 34. Nf2 {[%emt 0:00:11]} Bb5 {[%emt 0:00:02]} 35. Qg7 {[%emt 0:00:16]} Bxf1 {[%emt 0:00:07]} 36. Qg8+ {[%emt 0:00:01]} Ke7 {[%emt 0:00:04]} 37. Qxc8 {[%emt 0:00:01]} Qxf2 {[%emt 0:00:07]} 38. Qc7+ {[%emt 0:00:19]} Kf8 {[%emt 0:00:01]} 0-1

[Event "Chess Super League 2021"]
[Site "Online"]
[Date "2021.10.15"]
[Round "5.1"]
[White "Priyanka, K."]
[Black "Arpita, Mukherjee"]
[Result "1-0"]
[ECO "B56"]
[WhiteElo "2218"]
[BlackElo "2229"]
[Annotator "NA"]
[PlyCount "141"]
[EventDate "2021.10.11"]
[EventType "team-tourn"]
[EventCountry "NET"]
[SourceTitle "playchess.com"]
[Source "ChessBase"]
[SourceQuality "1"]
[TimeControl "900+10"]

1. e4 {[%emt 0:00:11]} c5 {[%emt 0:00:15]} 2. Nf3 {[%emt 0:00:02]} d6 {[%emt 0:00:02]} 3. d4 {[%emt 0:00:00]} cxd4 {[%emt 0:00:02]} 4. Nxd4 {[%emt 0:00:01]} Nf6 {[%emt 0:00:03]} 5. Nc3 {[%emt 0:00:01]} Nc6 {[%emt 0:00:04]} 6. g3 {[%emt 0:01:04]} e5 {[%emt 0:00:18]} 7. Nde2 {[%emt 0:00:36]} Be7 {[%emt 0:00:53]} 8. Bg2 {[%emt 0:00:33]} O-O {[%emt 0:00:36]} 9. O-O {[%emt 0:00:07]} Bd7 {[%emt 0:00:26]} 10. h3 {[%emt 0:00:22]} a6 {[%emt 0:01:25]} 11. a4 $11 {[%emt 0:00:23]} Nb4 {[%emt 0:00:49]} 12. f4 {[%emt 0:04:39]} Bc6 {[%emt 0:01:19]} 13. Nd5 {[%emt 0:03:19]} Bxd5 {[%emt 0:05:46]} 14. exd5 {[%emt 0:00:00]} a5 {[%emt 0:00:18]} 15. c3 {[%emt 0:01:09]} Na6 {[%emt 0:00:07]} 16. Be3 {[%emt 0:00:09]} exf4 {[%emt 0:00:51]} 17. Nxf4 {[%emt 0:00:05]} Nd7 {[%emt 0:00:11]} 18. Nd3 {[%emt 0:00:44]} Bf6 {[%emt 0:00:11]} 19. Ra3 {[%emt 0:01:03]} Ne5 {[%emt 0:00:46]} 20. Nxe5 {[%emt 0:00:22]} Bxe5 {[%emt 0:00:01]} 21. Qg4 {[%emt 0:00:13]} b6 {[%emt 0:00:55]} 22. b4 {[%emt 0:01:27]} Rc8 {[%emt 0:00:26]} 23. Bd2 {[%emt 0:00:16]} Qc7 {[%emt 0:00:20]} 24. Be4 {[%emt 0:00:43]} Qc4 {[%emt 0:01:51]} 25. Bf5 {[%emt 0:01:23]} Qxg4 {[%emt 0:00:17]} 26. Bxg4 {[%emt 0:00:02]} Rc7 {[%emt 0:00:11]} 27. Be2 {[%emt 0:00:11]} Nb8 {[%emt 0:00:05]} 28. bxa5 {[%emt 0:00:12]} bxa5 {[%emt 0:00:04]} 29. c4 {[%emt 0:00:03]} Bd4+ {[%emt 0:00:35]} 30. Kg2 {[%emt 0:00:04]} Ra7 {[%emt 0:00:31]} 31. Rb1 {[%emt 0:00:25]} Nd7 {[%emt 0:00:10]} 32. Rb5 {[%emt 0:00:06]} Rfa8 {[%emt 0:00:18]} 33. Rab3 {[%emt 0:00:09]} g6 {[%emt 0:00:13]} 34. Bd1 {[%emt 0:00:13]} Kg7 {[%emt 0:00:06]} 35. Rb7 {[%emt 0:00:09]} Ne5 {[%emt 0:00:20]} 36. Rxa7 {[%emt 0:00:16]} Rxa7 {[%emt 0:00:02]} 37. Be2 {[%emt 0:00:01]} Nd7 {[%emt 0:00:07]} 38. Rb5 {[%emt 0:00:04]} Nc5 {[%emt 0:00:04]} 39. Bd1 {[%emt 0:00:08]} Nb7 {[%emt 0:00:06]} 40. Kf3 {[%emt 0:00:06]} f5 {[%emt 0:00:03]} 41. g4 {[%emt 0:00:22]} Kf6 {[%emt 0:00:05]} 42. Bc2 {[%emt 0:00:06]} Ke5 {[%emt 0:00:34]} 43. Bf4+ {[%emt 0:00:20]} Kf6 {[%emt 0:00:07]} 44. gxf5 {[%emt 0:00:10]} gxf5 {[%emt 0:00:02]} 45. Bd2 {[%emt 0:00:12]} Ke5 {[%emt 0:00:08]} 46. Be1 {[%emt 0:00:03]} Kf6 {[%emt 0:00:10]} 47. Kf4 {[%emt 0:00:08]} Be5+ {[%emt 0:00:03]} 48. Ke3 {[%emt 0:00:02]} Nc5 {[%emt 0:00:33]} 49. Rxa5 {[%emt 0:00:14]} Rg7 {[%emt 0:00:05]} 50. Bh4+ {[%emt 0:00:05]} Kg6 {[%emt 0:00:03]} 51. Ra8 {[%emt 0:00:27]} Kh5 {[%emt 0:00:05]} 52. Bf2 {[%emt 0:00:08]} f4+ {[%emt 0:00:27]} 53. Kf3 {[%emt 0:00:04]} Nd7 {[%emt 0:00:13]} 54. Ra7 {[%emt 0:00:15]} Bc3 {[%emt 0:00:16]} 55. Bf5 {[%emt 0:00:10]} Ne5+ {[%emt 0:00:02]} 56. Kxf4 {[%emt 0:00:09]} Bd2+ {[%emt 0:00:11]} 57. Ke4 {[%emt 0:00:08]} Rxa7 {[%emt 0:00:03]} 58. Bxa7 {[%emt 0:00:02]} Ba5 {[%emt 0:00:13]} 59. Kd4 {[%emt 0:00:21]} Nf3+ {[%emt 0:00:04]} 60. Ke3 {[%emt 0:00:04]} Ne5 {[%emt 0:00:03]} 61. c5 {[%emt 0:00:07]} dxc5 {[%emt 0:00:26]} 62. Bxc5 {[%emt 0:00:00]} h6 {[%emt 0:00:10]} 63. Ke4 {[%emt 0:00:08]} Nf7 {[%emt 0:00:08]} 64. d6 {[%emt 0:00:11]} Kg5 {[%emt 0:00:07]} 65. d7 {[%emt 0:00:19]} Kf6 {[%emt 0:00:03]} 66. Bg4 {[%emt 0:00:18]} Nd8 {[%emt 0:00:07]} 67. Kd5 {[%emt 0:00:06]} Bc7 {[%emt 0:00:26]} 68. Bb4 {[%emt 0:00:12]} Bb8 {[%emt 0:00:18]} 69. a5 {[%emt 0:00:05]} Ba7 {[%emt 0:00:07]} 70. a6 {[%emt 0:00:03]} Kf7 {[%emt 0:00:04]} 71. Bc5 {[%emt 0:00:22]} 1-0